bitfinex/quotes_ETHUSD_20241129
["timestamp","ask_amount","ask_price","bid_price","bid_amount"]
[1732906901429,2.79592,3576.7,3576.4,1.0354]
[1732906904541,3.78257,3577.0,3576.4,1.0354]
[1732906904707,2.79574,3576.9,3576.4,1.0354]
[1732906905313,2.79574,3576.9,3576.5,0.41705104]
[1732906905839,2.79582,3576.8,3576.5,0.41705104]
[1732906906346,2.79567,3577.0,3576.6,0.41705104]
[1732906906640,2.79573,3576.9,3576.4,1.0354]
[1732906906849,2.79573,3576.9,3576.5,0.41734021]
[1732906907016,2.79573,3576.9,3576.6,0.41734021]
[1732906907348,2.79573,3576.9,3576.7,0.41755792]
[1732906907516,2.79579,3576.8,3576.4,1.55734741]
[1732906907721,2.79579,3576.8,3576.5,0.41756265]
[1732906907922,2.79579,3576.8,3576.6,0.41756126]
[1732906908256,2.79579,3576.8,3576.7,0.41776863]
[1732906908413,2.79579,3576.8,3576.4,1.0354]
[1732906908609,2.79579,3576.8,3576.7,0.41776596]
[1732906909847,3.0,3577.1,3576.7,3.21363596]
[1732906910051,3.0,3577.1,3576.8,0.41776596]
[1732906910234,3.0,3577.1,3576.9,0.41776596]
[1732906910546,3.0,3577.1,3577.0,0.41776596]
[1732906910547,5.79557,3577.1,3577.0,0.41776596]
[1732906911948,3.8379,3577.6,3577.0,0.41776596]
[1732906911949,1.0427,3577.6,3577.0,0.41776596]
[1732906912153,3.0,3577.4,3577.1,0.41776596]
[1732906912356,3.0,3577.4,3577.2,0.41776596]
[1732906912357,3.0,3577.3,3577.2,0.41776596]
[1732906912959,5.7954,3577.3,3577.2,0.41776596]
[1732906913957,2.79555,3577.2,3577.0,1.0473]
[1732906914117,2.79555,3577.2,3577.1,0.4181371]
[1732906915113,2.79546,3577.3,3576.7,1.0485]
[1732906915318,2.79546,3577.3,3576.8,0.9410249]
[1732906915516,2.79546,3577.3,3576.9,0.41823329]
[1732906915843,2.79557,3577.1,3576.7,1.0485]
[1732906916044,2.79571,3576.9,3575.9,4.39496]
[1732906916223,2.79571,3576.9,3576.3,0.55]
[1732906916826,5.30445151,3577.4,3576.2,1.0485]
[1732906916827,2.79597,3576.6,3576.2,1.0485]
[1732906917664,2.79618,3576.3,3576.2,1.0485]
[1732906918043,2.79618,3576.3,3576.0,1.0632]
[1732906918499,2.79634,3576.1,3575.7,0.43581627]
[1732906918640,2.79634,3576.1,3575.7,1.49901627]
[1732906919038,2.7965,3575.9,3575.7,1.49901627]
[1732906919231,3.80927,3576.1,3575.7,0.43581627]
[1732906919429,2.79649,3575.9,3575.8,1.20324635]
[1732906919669,2.79649,3575.9,3575.7,0.43581627]
[1732906920033,2.79649,3575.9,3575.8,0.68009458]
[1732906920830,2.79642,3576.0,3575.8,0.68009458]
[1732906921034,5.79657,3575.8,3575.7,0.43581627]
[1732906924184,9.11392151,3575.8,3575.7,0.43581627]
[1732906930192,2.79681,3575.5,3575.4,0.00149434]
[1732906930393,5.79681,3575.5,3575.4,0.00149434]
[1732906934777,6.82981,3575.5,3575.4,0.00149434]
[1732906935611,9.13426151,3575.5,3575.4,0.00149434]
[1732906938714,9.13426151,3575.5,3574.2,5.0]
[1732906938715,2.79748,3574.7,3574.2,5.0]
[1732906938901,2.79712,3575.1,3572.8,7.79892]
[1732906938902,2.79822,3573.7,3572.8,5.0]
[1732906939073,9.13567151,3573.7,3572.8,5.0]
[1732906941220,9.13567151,3573.7,3572.9,1.0333]
[1732906942127,8.10267151,3573.7,3572.9,1.0333]
[1732906942819,8.10267151,3573.7,3572.8,5.0]
[1732906943018,9.14547151,3573.7,3572.8,5.0]
[1732906945922,9.70845346,3573.7,3572.8,5.0]
[1732906949483,9.70845346,3573.7,3573.6,0.8997987]
[1732906949712,9.70845346,3573.7,3573.6,0.65695604]
[1732906952426,8.10267151,3573.7,3573.6,0.65695604]
[1732906954332,9.22527151,3573.7,3573.6,0.5502905]
[1732906954627,6.82089,3573.6,3573.5,4.85381459]
[1732906956295,5.79829,3573.6,3573.5,4.85381459]
[1732906957499,6.84759,3573.6,3573.5,4.85381459]
[1732906959237,10.84759,3573.6,3573.5,4.85381459]
[1732906959833,9.79829,3573.6,3573.5,4.85381459]
[1732906960193,5.79829,3573.6,3573.5,4.85381459]
[1732906962948,5.10267151,3573.7,3573.6,0.9604]
[1732906962949,2.79828,3573.7,3573.6,0.9604]
[1732906963713,2.79829,3573.6,3573.5,4.85381459]
[1732906964321,5.79829,3573.6,3573.5,4.85381459]
[1732906965427,2.79819,3573.8,3573.5,4.85381459]
[1732906965631,3.0,3573.7,3573.6,1.015]
[1732906965927,0.56317442,3574.2,3573.6,1.015]
[1732906965928,3.29835151,3574.9,3573.6,1.61854093]
[1732906966128,2.79782,3574.2,3573.6,4.41682093]
[1732906969051,2.79782,3574.2,3573.5,4.85381459]
[1732906969052,2.30445151,3574.1,3573.5,4.85381459]
[1732906969235,2.79819,3573.8,3573.5,4.85381459]
[1732906969440,2.79823,3573.7,3573.5,4.85381459]
[1732906970372,2.79823,3573.7,3573.4,0.01]
[1732906971825,3.0,3573.8,3573.4,0.01]
[1732906972160,5.79816,3573.8,3573.4,0.01]
[1732906972470,2.79822,3573.7,3573.4,0.01]
[1732906972666,9.26642151,3573.5,3573.4,0.01]
[1732906973170,9.81263375,3573.5,3573.4,0.01]
[1732906973934,8.64903375,3573.5,3573.4,0.01]
[1732906974159,5.79837,3573.5,3573.4,0.01]
[1732906974535,8.10282151,3573.5,3573.4,0.01]
[1732906975929,8.10282151,3573.5,3573.3,0.1565947]
[1732906976129,8.10282151,3573.5,3571.2,0.1]
[1732906976331,0.2,3574.3,3484.4,0.025]
[1732906976332,0.1,3570.9,3570.7,5.01]
[1732906976586,0.1,3570.9,3570.8,2.12303795]
[1732906976587,9.05159111,3570.9,3570.8,2.12303795]
[1732906976881,3.0,3569.5,3569.4,2.39749067]
[1732906977077,3.0,3569.5,3567.9,5.01]
[1732906977078,0.8467296,3569.5,3567.9,5.01]
[1732906977285,2.8021,3568.8,3567.9,5.01]
[1732906977515,0.2583072,3568.7,3568.3,1.0823]
[1732906977658,0.8451568,3568.7,3567.9,5.01]
[1732906977993,1.61804903,3568.7,3568.6,6.0823]
[1732906978203,1.61804903,3568.7,3568.6,9.49274]
[1732906978350,1.61687734,3568.7,3568.6,5.0]
[1732906978663,1.61687734,3568.7,3568.6,6.0823]
[1732906979852,0.8451568,3568.7,3568.6,6.6323]
[1732906980103,1.61561144,3568.7,3568.6,6.6323]
[1732906980399,0.8451568,3568.7,3568.6,10.377984]
[1732906980559,4.9154968,3568.7,3568.6,5.0]
[1732906981692,7.9154968,3568.7,3568.6,5.0]
[1732906982093,6.57214726,3568.7,3568.6,5.0]
[1732906982396,6.99909426,3568.7,3568.6,5.0]
[1732906982606,6.7472968,3568.7,3568.6,5.0]
[1732906982984,6.99831128,3568.7,3568.6,5.0]
[1732906983287,6.32830402,3568.7,3568.6,5.0]
[1732906983492,6.99138048,3568.7,3568.6,5.0]
[1732906983858,6.56589592,3568.7,3568.6,5.0]
[1732906986377,6.56589592,3568.7,3568.6,4.23549]
[1732906991103,5.90214,3568.7,3568.6,4.23549]
[1732906992715,3.1,3568.7,3568.6,4.23549]
[1732906992932,0.1,3568.8,3568.7,0.55]
[1732906993515,0.1,3569.0,3568.7,0.55]
[1732906993817,0.1,3569.4,3568.7,0.55]
[1732906994036,0.1,3569.4,3568.9,0.55]
[1732906994314,1.1554,3569.9,3568.9,0.55]
[1732906994315,0.1,3569.6,3568.9,0.55]
[1732906994501,0.1,3569.6,3569.1,0.55]
[1732906994710,0.25380947,3569.8,3569.0,3.87729]
[1732906994711,0.1,3569.8,3569.3,0.55]
[1732906995229,0.1,3569.6,3569.1,0.55]
[1732906995378,0.1,3569.6,3569.1,3.35182]
[1732906996017,2.80114,3570.0,3569.1,3.35182]
[1732906996018,0.1,3569.8,3569.1,3.35182]
[1732906996221,0.1,3569.8,3569.2,2.80174]
[1732906996375,0.1,3569.6,3569.3,0.536941]
[1732906996576,0.1,3569.8,3569.3,0.536941]
[1732906996811,0.1,3569.8,3569.3,2.8016]
[1732906997126,5.80214,3568.7,3568.6,4.23549]
[1732906997286,5.90214,3568.7,3568.6,4.23549]
[1732906997891,0.1,3568.7,3568.6,4.23549]
[1732906998793,0.1,3568.7,3568.6,4.78549]
[1732906999318,5.90214,3568.7,3568.6,4.78549]
[1732906999520,6.15719347,3568.7,3568.6,4.78549]
[1732906999707,3.1,3568.7,3568.6,4.78549]
[1732906999916,0.1,3568.7,3568.6,4.78549]
[1732907000123,3.1,3568.7,3568.6,4.78549]
[1732907000733,0.1,3569.3,3568.7,0.55]
[1732907001036,0.1,3569.6,3568.7,0.55]
[1732907001332,0.1,3569.9,3569.4,2.80157]
[1732907001541,0.25581696,3570.0,3569.5,2.82619562]
[1732907001741,0.25581696,3570.0,3569.4,0.0008]
[1732907001742,0.1,3568.8,3568.0,2.82828283]
[1732907001898,2.80254,3568.2,3568.0,2.82828283]
[1732907002095,2.80261,3568.1,3568.0,2.82828283]
[1732907002412,3.05885303,3568.1,3568.0,2.82828283]
[1732907002607,3.46881535,3568.1,3568.0,2.82828283]
[1732907002804,6.05885303,3568.1,3568.0,2.82828283]
[1732907003136,6.46881858,3568.1,3568.0,2.82828283]
[1732907004239,6.05885303,3568.1,3568.0,2.82828283]
[1732907005640,6.06036073,3568.1,3568.0,2.82828283]
[1732907005812,3.25775073,3568.1,3568.0,2.82828283]
[1732907006003,0.25775073,3568.1,3568.0,2.82828283]
[1732907006507,0.25775073,3568.1,3568.0,2.81652973]
[1732907007204,0.1,3568.3,3568.1,0.55]
[1732907007605,3.1,3568.3,3568.1,0.55]
[1732907007808,3.0,3568.4,3568.1,0.55]
[1732907008308,0.1,3569.0,3568.3,0.55]
[1732907008510,2.80199,3568.9,3568.3,0.55]
[1732907008725,2.80213,3568.8,3568.3,0.55]
[1732907008894,2.80165,3569.4,3568.8,0.55]
[1732907009096,2.90168,3569.3,3568.8,0.55]
[1732907009630,2.80151,3569.5,3568.8,0.55]
[1732907009834,0.1,3569.3,3568.8,0.55]
[1732907010036,2.80159,3569.4,3568.8,0.55]
[1732907010209,3.0,3569.3,3568.8,2.80205]
[1732907010539,3.0,3569.3,3568.9,0.55]
[1732907010729,2.8016,3569.4,3569.1,0.55]
[1732907010902,5.80144,3569.6,3569.1,0.55]
[1732907011207,0.1,3569.7,3569.3,0.55]
[1732907011538,2.80132,3569.8,3569.1,3.3518]
[1732907011834,2.80114,3570.0,3569.1,0.55]
[1732907012054,2.80114,3570.0,3569.4,0.55]
[1732907012198,0.1,3570.1,3569.4,3.35153]
[1732907012398,2.90106,3570.1,3569.4,3.35153]
[1732907012716,2.80112,3570.0,3569.4,3.35153]
[1732907012912,2.80089,3570.3,3568.7,2.80207]
[1732907012913,3.1,3570.3,3569.7,1.179]
[1732907013115,0.1,3570.5,3569.9,2.80113]
[1732907013315,2.90076,3570.5,3570.0,0.55]
[1732907013914,0.1,3570.5,3569.8,2.80127]
[1732907014238,2.90072,3570.5,3570.0,0.55]
[1732907014538,2.8005,3570.8,3570.0,2.80111]
[1732907014539,2.90059,3570.7,3570.0,2.80111]
[1732907014836,0.1,3570.8,3570.1,0.55]
[1732907015137,2.80053,3570.8,3570.1,2.80101]
[1732907015339,2.80059,3570.7,3570.2,0.55]
[1732907015649,0.1,3570.5,3570.1,0.55]
[1732907015798,3.0,3570.7,3570.1,3.35101]
[1732907016004,0.1,3570.5,3570.1,0.55]
[1732907016233,0.1,3570.5,3570.1,3.35103]
[1732907016435,5.80057,3570.7,3570.1,3.35103]
[1732907016603,0.1,3570.5,3570.1,3.35097]
[1732907016804,3.0,3570.6,3570.3,0.55]
[1732907017033,3.0,3570.8,3570.3,0.55]
[1732907017506,3.0,3570.8,3570.3,3.35086]
[1732907017702,0.1,3571.1,3570.3,0.55]
[1732907017903,0.1,3571.1,3570.5,0.55]
[1732907017904,2.80034,3571.0,3570.5,0.55]
[1732907018443,0.1,3571.4,3570.8,0.55]
[1732907018795,0.1,3571.4,3570.6,3.97958]
[1732907018796,2.90003,3571.4,3570.7,3.35056]
[1732907019228,0.1,3571.4,3570.7,3.35056]
[1732907019567,3.0,3571.2,3570.7,3.35056]
[1732907019734,0.1,3571.4,3570.9,0.55]
[1732907020079,3.0,3571.3,3570.9,0.55]
[1732907020377,3.0,3571.3,3570.1,2.80098]
[1732907020378,0.1,3570.7,3569.7,1.179]
[1732907020575,3.0,3570.8,3569.7,1.179]
[1732907020576,3.1,3570.5,3569.7,1.179]
[1732907020745,0.1,3569.9,3569.2,2.80174]
[1732907020940,2.80133,3569.8,3569.0,2.8019]
[1732907021265,3.0,3569.7,3569.1,2.80176]
[1732907021469,3.0,3569.8,3569.3,1.0981]
[1732907022031,0.1,3569.9,3569.4,0.55]
[1732907022232,3.0,3569.7,3569.4,0.55]
[1732907022477,3.0,3569.8,3569.4,0.55]
[1732907022847,2.80128,3569.8,3569.4,0.55]
[1732907023062,3.0,3569.7,3569.4,0.55]
[1732907024162,2.80143,3569.6,3569.4,0.55]
[1732907024671,3.0,3569.7,3569.4,0.55]
[1732907024840,2.80135,3569.7,3569.4,0.55]
[1732907025037,2.80151,3569.5,3569.4,0.55]
[1732907025545,2.80176,3569.2,3568.4,1.0934]
[1732907025751,2.80177,3569.2,3568.5,3.38085]
[1732907026133,2.80159,3569.4,3568.4,1.0934]
[1732907026134,2.80188,3569.1,3568.4,1.0934]
[1732907026333,2.80215,3568.7,3568.4,1.0934]
[1732907026581,0.01057779,3568.5,3568.4,1.0934]
[1732907026952,0.01057779,3568.5,3568.4,3.89577]
[1732907027933,0.01057779,3568.5,3568.4,4.44577]
[1732907028194,0.01057779,3568.5,3568.4,2.6692835]
[1732907028479,0.01057779,3568.5,3568.4,4.44577]
[1732907032558,2.8016,3569.4,3568.5,3.35225]
[1732907032754,2.8016,3569.4,3568.5,3.35226]
[1732907032985,2.8016,3569.4,3568.5,0.55]
[1732907033187,2.8016,3569.4,3568.9,0.55]
[1732907034341,2.8016,3569.4,3568.8,2.80204]
[1732907034584,2.8016,3569.4,3568.9,0.55]
[1732907034974,3.00557785,3569.5,3568.9,0.55]
[1732907035172,0.00557785,3569.5,3569.1,3.35177]
[1732907035749,0.00557785,3569.5,3569.4,3.35159]
[1732907036461,2.90049,3570.8,3570.2,0.55]
[1732907036662,2.80061,3570.7,3570.2,0.55]
[1732907036889,2.80054,3570.8,3570.2,0.55]
[1732907037057,0.1,3570.9,3570.2,0.55]
[1732907037268,2.80066,3570.6,3570.2,0.55]
[1732907037766,2.80049,3570.8,3570.2,0.55]
[1732907037957,2.80034,3571.0,3570.2,1.318242]
[1732907038162,2.80019,3571.2,3570.2,1.318242]
[1732907038388,0.1,3571.3,3570.2,3.35094]
[1732907038683,0.1,3571.3,3568.7,2.80212]
[1732907038684,2.80111,3570.1,3569.6,1.5955]
[1732907038859,2.80086,3570.4,3569.6,1.5955]
[1732907038860,2.80093,3570.3,3569.6,4.39692]
[1732907039784,2.801,3570.2,3569.6,1.5955]
[1732907040307,2.80167,3569.3,3568.9,1.5561]
[1732907040792,2.80147,3569.6,3568.9,4.35805]
[1732907040989,2.80152,3569.5,3568.9,4.35805]
[1732907041386,2.80146,3569.6,3569.0,2.8019]
[1732907041696,2.80152,3569.5,3569.0,0.55]
[1732907041894,0.1,3570.1,3569.0,0.7941304]
[1732907041895,2.80124,3569.9,3569.0,0.7941304]
[1732907042108,2.90104,3570.1,3569.4,0.55]
[1732907042322,3.0,3570.0,3569.4,0.55]
[1732907042605,2.80133,3569.8,3569.3,0.55]
[1732907042769,3.0,3569.9,3569.3,2.80166]
[1732907042973,3.0,3569.9,3569.4,3.35158]
[1732907043307,1.6575,3570.3,3569.8,0.55]
[1732907043308,3.0,3570.3,3569.8,0.55]
[1732907043465,0.1,3570.4,3569.8,0.55]
[1732907043672,3.0,3570.2,3569.8,0.55]
[1732907043970,5.80077,3570.5,3569.8,3.35126]
[1732907044178,3.0,3570.5,3570.1,0.55]
[1732907044397,2.80066,3570.6,3570.1,0.55]
[1732907046114,2.80112,3570.0,3569.8,0.55]
[1732907046421,2.80102,3570.2,3569.8,0.55]
[1732907047495,5.6017,3570.4,3569.8,0.55]
[1732907047700,2.80091,3570.3,3569.8,0.55]
[1732907048614,2.80101,3570.2,3569.8,0.39905]
[1732907048808,0.1,3570.7,3569.8,0.39905]
[1732907048977,0.1,3570.7,3569.3,1.665]
[1732907048978,2.80159,3569.4,3569.3,1.665]
[1732907049207,2.80159,3569.4,3568.8,1.665]
[1732907049384,2.80129,3569.8,3568.8,1.665]
[1732907049581,2.80136,3569.7,3569.1,2.80176]
[1732907049783,2.80154,3569.5,3568.9,2.80192]
[1732907050084,4.74,3570.3,3569.3,1.665]
[1732907050085,2.80123,3569.9,3569.3,1.665]
[1732907050286,3.0,3570.0,3569.3,1.665]
[1732907050589,3.0,3570.0,3569.5,2.80144]
[1732907050911,5.80112,3570.0,3569.4,0.55]
[1732907051207,2.80119,3569.9,3569.4,0.55]
[1732907051419,0.1,3570.3,3569.4,0.55]
[1732907051420,2.80133,3569.8,3569.4,0.55]
[1732907051782,5.90093,3570.3,3569.4,3.35154]
[1732907051975,3.0,3570.3,3569.6,3.35136]
[1732907052182,3.0,3570.4,3569.9,0.55]
[1732907052376,3.0,3570.6,3569.9,0.55]
[1732907052688,3.0,3570.4,3569.6,0.55]
[1732907053014,2.80107,3570.1,3569.6,0.55]
[1732907053218,2.80088,3570.3,3569.6,3.35142]
[1732907053419,2.80088,3570.3,3569.6,0.55]
[1732907054104,2.80108,3570.1,3569.6,0.55]
[1732907054616,2.80114,3570.0,3569.6,0.55]
[1732907054773,2.80108,3570.1,3569.6,0.55]
[1732907054976,2.80088,3570.3,3569.6,0.55]
[1732907056586,4.39368,3570.3,3569.6,0.55]
[1732907056914,2.80097,3570.2,3569.6,0.55]
[1732907057083,2.80106,3570.1,3569.6,0.55]
[1732907057284,2.80135,3569.8,3569.6,0.55]
[1732907057525,2.80135,3569.8,3569.2,1.633]
[1732907057821,2.80144,3569.6,3569.2,1.633]
[1732907057973,2.80144,3569.6,3568.3,2.90238]
[1732907057974,0.390135,3569.8,3568.3,1.5324]
[1732907058174,2.80192,3569.0,3568.3,1.5324]
[1732907058374,2.80172,3569.3,3568.3,1.5324]
[1732907058606,2.80175,3569.2,3568.3,1.5324]
[1732907058823,2.80184,3569.1,3568.3,2.43655297]
[1732907059016,2.80184,3569.1,3568.3,1.5324]
[1732907059184,2.80204,3568.9,3568.3,1.5324]
[1732907059380,2.80187,3569.1,3568.3,1.5324]
[1732907059579,5.80187,3569.1,3568.4,0.55]
[1732907060186,2.80191,3569.0,3568.4,0.55]
[1732907060607,3.0,3569.1,3568.3,1.5324]
[1732907060811,2.80211,3568.8,3568.3,1.5324]
[1732907061587,2.80211,3568.8,3568.0,2.81652973]
[1732907061902,2.80211,3568.8,3568.0,4.40862973]
[1732907062221,2.80211,3568.8,3568.3,0.55]
[1732907065186,2.80199,3568.9,3568.3,0.55]
[1732907065904,2.80198,3568.9,3568.3,0.55]
[1732907067328,2.80211,3568.8,3568.3,0.55]
[1732907067503,2.80198,3568.9,3568.3,0.55]
[1732907067717,6.11183,3569.1,3568.3,0.55]
[1732907068145,6.21183,3569.1,3568.3,0.55]
[1732907068607,6.21183,3569.1,3568.3,3.35245]
[1732907068954,0.1,3569.1,3568.6,0.55]
[1732907069754,1.7064,3570.1,3569.3,0.55]
[1732907070044,1.7064,3570.1,3569.3,2.1564]
[1732907070045,2.80114,3570.0,3569.3,2.1564]
[1732907070257,0.1,3570.1,3569.3,4.95805]
[1732907070542,0.1,3570.1,3569.6,2.80141]
[1732907070841,0.1,3570.1,3569.7,0.55]
[1732907071053,0.1,3570.1,3569.5,3.3515]
[1732907071211,2.80089,3570.3,3569.5,3.3515]
[1732907071212,2.80089,3570.3,3569.6,2.8014]
[1732907071409,3.0,3570.2,3569.7,0.55]
[1732907071613,3.0,3570.4,3569.7,3.35133]
[1732907072447,3.0,3570.4,3569.9,0.55]
[1732907072742,3.0,3570.4,3569.7,3.35133]
[1732907072905,3.0,3570.8,3570.0,0.55]
[1732907073111,3.0,3570.8,3570.2,0.55]
[1732907073305,0.1,3570.4,3570.2,0.55]
[1732907073507,0.1,3570.4,3570.1,2.80103]
[1732907073701,0.1,3570.4,3570.2,0.55]
[1732907073938,0.1,3570.4,3570.0,0.55]
[1732907074250,2.80101,3570.2,3570.0,0.55]
[1732907074429,2.80104,3570.1,3570.0,0.55]
[1732907074635,3.0,3570.0,3569.0,1.6018]
[1732907074818,2.80131,3569.8,3569.0,4.40369]
[1732907075182,5.80117,3570.0,3569.2,2.80169]
[1732907075387,3.1,3570.1,3569.6,2.80142]
[1732907075665,3.1,3570.1,3569.7,1.6018]
[1732907075875,5.90104,3570.1,3569.7,1.6018]
[1732907076567,3.0,3570.1,3569.8,0.55]
[1732907076730,3.0,3570.3,3569.9,2.80112]
[1732907076936,3.0,3570.4,3569.8,0.55]
[1732907077135,3.1,3570.4,3569.8,0.55]
[1732907077436,3.1,3570.4,3570.0,0.55]
[1732907078459,0.1,3570.5,3570.0,3.35106]
[1732907079160,5.80067,3570.6,3570.0,3.35106]
[1732907079363,3.0,3570.4,3570.0,3.35106]
[1732907079547,3.0,3570.4,3569.9,2.80118]
[1732907079737,3.0,3570.4,3570.0,0.55]
[1732907080186,3.0,3570.4,3570.0,3.3511]
[1732907080832,3.1,3570.4,3570.0,3.3511]
[1732907081039,2.80094,3570.3,3569.8,0.55]
[1732907081268,2.80094,3570.3,3569.8,3.35125]
[1732907081468,2.80104,3570.1,3569.8,0.55]
[1732907081687,2.80119,3569.9,3569.7,1.6018]
[1732907081838,2.80127,3569.8,3569.7,1.6018]
[1732907082981,2.80121,3569.9,3569.7,1.6018]
[1732907083181,2.80121,3569.9,3569.8,0.55]
[1732907084152,2.80159,3569.4,3569.3,1.6452]
[1732907085843,2.80151,3569.5,3569.4,0.55]
[1732907086087,2.80147,3569.6,3569.4,0.55]
[1732907086585,2.80151,3569.5,3569.4,0.55]
[1732907086987,2.80147,3569.6,3569.1,0.55]
[1732907087487,5.90136,3569.7,3569.1,3.35181]
[1732907087698,5.90136,3569.7,3569.1,4.128866]
[1732907088053,3.1,3569.7,3569.1,4.128866]
[1732907088264,5.9014,3569.7,3569.1,1.327056]
[1732907088598,5.9014,3569.7,3569.1,4.128806]
[1732907089354,5.9014,3569.7,3569.3,0.55]
[1732907090081,5.8014,3569.7,3569.3,0.55]
[1732907090288,5.9014,3569.7,3569.3,0.55]
[1732907090797,0.1,3569.7,3569.3,0.55]
[1732907091574,0.1,3569.9,3569.5,0.55]
[1732907091775,0.1,3570.5,3569.6,0.57801328]
[1732907091978,0.1,3570.5,3569.9,0.55]
[1732907092172,0.1,3570.5,3569.7,0.55]
[1732907092466,2.80107,3570.1,3569.6,0.55]
[1732907092671,2.80089,3570.3,3569.6,3.92861066]
[1732907093001,2.80099,3570.2,3569.8,0.55]
[1732907093499,3.1,3570.4,3569.8,0.55]
[1732907093806,3.1,3570.4,3570.0,0.55]
[1732907094001,0.1,3570.4,3570.0,3.35106]
[1732907094509,0.1,3570.4,3570.0,0.55]
[1732907094510,3.1,3570.4,3570.0,0.55]
[1732907095263,3.0,3570.6,3570.0,0.55]
[1732907095501,3.0,3570.7,3570.2,0.55]
[1732907095689,3.0,3570.7,3570.4,0.55]
[1732907096111,0.1,3570.6,3570.2,0.55]
[1732907096278,2.80079,3570.5,3570.0,0.55]
[1732907096600,2.80072,3570.5,3569.9,1.5658]
[1732907096811,0.1,3570.1,3569.6,1.5975]
[1732907096963,0.1,3570.1,3569.0,5.11574991]
[1732907096964,2.80135,3569.7,3569.3,1.5949]
[1732907097164,2.80145,3569.6,3569.3,1.5949]
[1732907097397,0.1,3570.1,3569.3,1.5949]
[1732907097398,2.80124,3569.9,3569.3,1.5949]
[1732907097968,0.1,3570.1,3569.3,1.5949]
[1732907097970,2.80129,3569.8,3569.3,1.5949]
[1732907098325,2.80129,3569.8,3569.4,0.55]
[1732907098614,2.80132,3569.8,3569.4,0.55]
[1732907098779,2.80139,3569.7,3569.4,0.55]
[1732907098979,2.80151,3569.5,3568.4,1.89]
[1732907099288,2.80175,3569.2,3568.8,1.5949]
[1732907099493,2.80195,3569.0,3568.8,1.5949]
[1732907099683,2.80195,3569.0,3568.5,2.092136]
[1732907100374,0.1,3569.1,3568.6,2.80221]
[1732907100702,0.1,3569.0,3568.8,2.80205]
[1732907100912,0.1,3569.0,3568.6,2.80221]
[1732907101199,3.0,3569.2,3568.7,0.55]
[1732907101436,0.1,3569.8,3568.9,2.0662]
[1732907101614,2.9016,3569.4,3568.9,2.0662]
[1732907101769,0.1,3569.4,3568.9,2.0662]
[1732907101969,2.80168,3569.3,3568.8,0.55]
[1732907102679,2.80186,3569.1,3568.7,0.55]
[1732907103072,2.80196,3569.0,3568.6,0.55]
[1732907103400,2.9019,3569.0,3568.5,0.55]
[1732907103603,2.8019,3569.0,3568.5,0.55]
[1732907103788,2.9019,3569.0,3568.5,1.73748899]
[1732907104294,0.1,3569.3,3568.5,1.73748899]
[1732907104503,3.0,3569.1,3568.7,0.55]
[1732907104672,3.0,3569.5,3569.1,1.5756]
[1732907104867,2.8012,3569.9,3569.3,2.80164]
[1732907105092,2.80109,3570.1,3569.4,3.35156]
[1732907105304,0.1,3569.7,3569.4,0.55]
[1732907105584,2.90136,3569.7,3569.2,3.35172]
[1732907105786,2.80152,3569.5,3569.2,0.55]
[1732907108019,2.8016,3569.4,3569.2,0.55]
[1732907108183,2.80166,3569.3,3569.2,0.55]
[1732907108383,2.80166,3569.3,3568.6,1.6347]
[1732907108590,0.1,3569.5,3568.6,1.6347]
[1732907108785,2.80188,3569.1,3568.6,1.6347]
[1732907108985,2.80204,3568.9,3568.6,1.6347]
[1732907109323,2.80204,3568.9,3568.3,1.5834]
[1732907109483,2.8022,3568.7,3568.3,1.5834]
[1732907109685,2.80222,3568.6,3568.3,1.5834]
[1732907109984,2.80229,3568.5,3568.0,2.81652973]
[1732907110879,2.80229,3568.5,3568.4,2.15183861]
[1732907111430,2.80229,3568.5,3568.4,2.44]
[1732907112192,2.80224,3568.6,3568.4,2.44]
[1732907112429,2.80224,3568.6,3568.5,0.55]
[1732907113650,2.9022,3568.7,3568.5,0.55]
[1732907114025,2.80221,3568.6,3568.5,0.55]
[1732907114736,2.80229,3568.5,3568.4,1.89]
[1732907115154,7.46479,3568.5,3568.4,1.89]
[1732907119148,2.90221,3568.6,3568.5,0.55]
[1732907119447,2.80207,3568.8,3568.5,0.55]
[1732907119448,0.1,3568.7,3568.5,0.55]
[1732907119654,2.80207,3568.8,3568.5,1.074245]
[1732907119811,2.90193,3569.0,3568.5,1.074245]
[1732907120160,0.1,3569.5,3569.1,0.55]
[1732907120315,2.80132,3569.8,3569.1,3.35176]
[1732907120519,2.80132,3569.8,3568.9,2.80197]
[1732907120520,2.80132,3569.8,3569.3,0.55]
[1732907120948,2.8014,3569.7,3569.3,0.55]
[1732907121256,2.80134,3569.8,3569.3,0.55]
[1732907121754,2.80113,3570.0,3569.3,1.05152]
[1732907121964,2.80144,3569.6,3569.3,0.55]
[1732907122252,2.80136,3569.7,3569.3,0.55]
[1732907122554,2.90124,3569.9,3569.3,0.55]
[1732907123150,2.80144,3569.6,3569.3,0.55]